Cogmind - Beta 13 @@@ ROGUE MODE // 2024.05.28 @ 14:09:01 Player: GFYguy Result: Self-destructed Performance ------------- Evolutions (1) 500 Regions Visited (3) 600 Robots Destroyed (26) 130 Value Destroyed (656) 656 Prototype IDs (0) 0 Alien Tech Used (0) 0 Bonus (0) 0 TOTAL SCORE: 1886 Bonus ------- None Cogmind --------- Core Integrity 289/400 Matter 194/300 Energy 198/200 System Corruption 0% Temperature Cool (0) Movement Treading (160) Location -9/Mines Parts ------- > --- POWER (1) -------- (None) > --- PROPULSION (3) --- Light Treads > --- UTILITY (3) ------ Large Storage Unit Small Battery Weight Redist. System > --- WEAPON (2) ------- (None) > --- INVENTORY (15) --- Ion Engine Light Treads Compact Wheel Heat Sink Huge Storage Unit Structural Scanner Structural Scanner Targeting Computer Improved Weapon Shielding Heavy Particle Cannon Heavy Particle Cannon Heavy Assault Rifle Autogun Peak State ------------ > --- POWER ------------ Ion Engine > --- PROPULSION ------- Aluminum Leg Aluminum Leg Aluminum Leg > --- UTILITY ---------- Large Storage Unit Small Battery Weight Redist. System > --- WEAPON ----------- Heavy Assault Rifle Autogun > --- INVENTORY -------- Ion Engine Light Treads Light Treads Wheel Compact Wheel Heat Sink Huge Storage Unit Structural Scanner Structural Scanner Targeting Computer Improved Weapon Shielding Heavy Particle Cannon Heavy Particle Cannon Autogun Autogun [Rating: 14] Favorites ----------- Power Ion Engine Engine Ion Engine Propulsion Aluminum Leg Treads Light Treads Leg Aluminum Leg Utility Medium Storage Unit Device Weight Redist. System Storage Medium Storage Unit Weapon Light Assault Rifle Ballistic Gun Light Assault Rifle Build | -11 -10 -9 -9 ------- Run | Yrd Mat Mat Min Slots Evolved 2 | . . 2 . Power . | . . . . Propulsion 1 | . . 1 . Utility 1 | . . 1 . Weapon . | . . . . Parts Attached 28 | 5 5 16 2 Power 4 | 1 1 1 1 Engine 4 | 1 1 1 1 Core . | . . . . Reactor . | . . . . Propulsion 12 | 2 . 9 1 Treads 7 | 2 . 4 1 Leg 5 | . . 5 . Wheel . | . . . . Hover . | . . . . Flight . | . . . . Utility 5 | 1 1 3 . Device 1 | . . 1 . Storage 4 | 1 1 2 . Processor . | . . . . Hackware . | . . . . Protection . | . . . . Artifact . | . . . . Weapon 7 | 1 3 3 . Energy Gun . | . . . . Energy Cannon . | . . . . Ballistic Gun 7 | 1 3 3 . Ballistic Cannon . | . . . . Launcher . | . . . . Special Weapon . | . . . . Impact Weapon . | . . . . Slashing Weapon . | . . . . Piercing Weapon . | . . . . Special Melee Weapon . | . . . . Unidentified Prototypes . | . . . . Parts Lost 8 | . 3 . 5 Power 1 | . . . 1 Propulsion 3 | . 1 . 2 Utility . | . . . . Weapon 4 | . 2 . 2 Highest Loss Streak 5 | . 2 . 5 To Critical Strikes . | . . . . Average Slot Usage (%) 89 | . 82 94 93 Engine 12 | . 14 11 11 Treads 15 | . 26 3 30 Leg 14 | . . 29 . Device 5 | . . 9 11 Storage 17 | . 14 19 22 Ballistic Gun 23 | . 25 22 18 Naked Turns . | . . . . Heaviest Build 32 | 11 21 32 32 Greatest Support 66 | 40 40 66 66 Greatest Overweight (x) 1 | . . 1 . Average Overweight (x) . | . . . . Largest Inventory Capacity 15 | 8 10 15 15 Average Capacity 11 | 7 9 13 15 Most Carried 15 | 7 10 15 14 Average Carried 10 | 4 9 12 13 Final Capacity 15 | 8 10 15 15 Final Carried 14 | 7 10 14 13 Class Distribution -------------------- 61% | Mutant 38% | Scavenger-Mutant Dominant Class ---------------- Mutant | -10/Materials Scavenger-Mutant | -9/Materials Scavenger-Mutant | -9/Mines Resources | -11 -10 -9 -9 ----------- Run | Yrd Mat Mat Min Matter Collected 660 | 250 203 207 . Remotely . | . . . . Salvage Created 1052 | . 491 561 . Parts 64 | . 31 33 . Haulers Intercepted 3 | . . 3 . Recyclers Shooed . | . . . . Parts Field Recycled . | . . . . Retrieved Matter . | . . . . Parts Self-Destructed . | . . . . Prevented . | . . . . Kills | -11 -10 -9 -9 ------- Run | Yrd Mat Mat Min Combat Hostiles Destroyed 19 | . 13 6 . Guns 19 | . 13 6 . Classes Destroyed 6 | . 3 3 . Hauler 3 | . . 3 . Recycler 2 | . . 2 . Watcher 2 | . 2 . . Swarmer 3 | . 3 . . Grunt 14 | . 10 4 . Sentry 2 | . . 2 . Best Kill Streak 3 | . 3 3 . Combat Bots Only 3 | . 3 2 . Max Kills in Single Turn 1 | . 1 1 . Gunslinging . | . . . . Exploded . | . . . . Melee . | . . . . Uniques/NPCs Destroyed . | . . . . Combat | -11 -10 -9 -9 -------- Run | Yrd Mat Mat Min Hostile Shots Fired 155 | . 81 50 24 Missed 38 | . 14 18 6 Damage Taken 1834 | . 720 469 645 Core 262 | . 151 33 78 Absorbed by Shields . | . . . . Core Remaining (%) 69 | 100 39 . . Volleys Fired 94 | . 54 40 . Largest 2 | . 2 2 . Hottest 46 | . 40 46 . Shots Fired 183 | . 103 80 . Gun 183 | . 103 80 . Cannon . | . . . . Launcher . | . . . . Special . | . . . . Kinetic 183 | . 103 80 . Thermal . | . . . . Explosive . | . . . . Electromagnetic . | . . . . Robot Hit Streak 14 | . 10 14 . Robot Miss Streak 7 | . 2 7 . Penetration Max . | . . . . Secondary Targets 3 | . 2 1 . Max Gunslinging Chain 1 | . 1 1 . Shots Hit Robots 120 | . 71 49 . Core Hits 50 | . 26 24 . Critical Kills . | . . . . Critical Parts Destroyed 3 | . 1 2 . Critical Strikes 3 | . 1 2 . Destroy 3 | . 1 2 . Melee Attacks . | . . . . Impact . | . . . . Slashing . | . . . . Piercing . | . . . . Sneak Attacks . | . . . . Combat Hostiles . | . . . . Follow-up Attacks . | . . . . Damage Inflicted 1223 | . 715 508 . Guns 1223 | . 715 508 . Cannons . | . . . . Explosions . | . . . . Melee . | . . . . Ramming . | . . . . Kinetic 1223 | . 715 508 . Thermal . | . . . . Explosive . | . . . . Electromagnetic . | . . . . Impact . | . . . . Slashing . | . . . . Piercing . | . . . . Highest Corruption . | . . . . Average Corruption . | . . . . Corruption Purged . | . . . . Corruption Blocked . | . . . . Overload Shots . | . . . . Overflow Damage . | . . . . Projectiles . | . . . . Explosions . | . . . . Melee . | . . . . Knockbacks . | . . . . Impact . | . . . . Kinetic . | . . . . Secondary . | . . . . Self-Inflicted Damage . | . . . . Shots . | . . . . Rammed . | . . . . Targets Rammed . | . . . . Kicked . | . . . . Crushed . | . . . . Highest Temperature 24 | . 24 10 . Average Temperature 7 | . 7 6 . Received Heat Transfer 585 | . 360 165 60 Siege Activations . | . . . . Robots Corrupted . | . . . . Combat Hostiles . | . . . . Parts Fried . | . . . . Impact Corruptions . | . . . . Robots Melted . | . . . . Combat Hostiles . | . . . . Parts Melted . | . . . . Heat Transferred . | . . . . Parts Sabotaged . | . . . . Parts Stolen . | . . . . Parts Stripped . | . . . . Power Chain Reactions . | . . . . Alert | -11 -10 -9 -9 ------- Run | Yrd Mat Mat Min Peak Influence 350 | . 350 306 112 Initial 90 | . . 90 82 Average 159 | . 167 186 90 Maximum Alert Level 1 | . 1 1 . Low Security (%) 64 | 100 63 54 100 Level 1 35 | . 36 45 . Level 2 . | . . . . Level 3 . | . . . . Level 4 . | . . . . Level 5 . | . . . . High Security . | . . . . Max Security . | . . . . Squads Dispatched 7 | . 4 3 . Investigation 3 | . 1 2 . Extermination . | . . . . Reinforcement 4 | . 3 1 . Assault . | . . . . Garrison . | . . . . Intercept . | . . . . Searches Triggered . | . . . . Construction Impeded . | . . . . Haulers Reinforced . | . . . . Active Scanning Responses . | . . . . Cargo Convoy Interrupts . | . . . . Stealth | -11 -10 -9 -9 --------- Run | Yrd Mat Mat Min Distress Signals 2 | . 1 1 . Communications Jammed . | . . . . Distress Signals . | . . . . Times Spotted 58 | . 24 16 18 Peak Tracking Total 17 | . 5 7 17 Tactical Retreats 3 | . 1 1 1 Traps | -11 -10 -9 -9 ------- Run | Yrd Mat Mat Min Traps Triggered 5 | . 1 4 . Indirectly . | . . . . Trap Hack Attempts . | . . . . Triggered . | . . . . Disarmed . | . . . . Reprogrammed . | . . . . Reused . | . . . . Traps Extracted . | . . . . Installed . | . . . . Triggered . | . . . . Machines | -11 -10 -9 -9 ---------- Run | Yrd Mat Mat Min Machines Disabled 1 | . 1 . . Max in Single Turn 1 | . 1 . . Machines Repaired . | . . . . Machines Dismantled . | . . . . Machines Sabotaged . | . . . . Overloaded Fab Kills . | . . . . Hacking | -11 -10 -9 -9 --------- Run | Yrd Mat Mat Min Machines Accessed 2 | . 1 1 . Terminals 1 | . . 1 . Fabricators . | . . . . Repair Stations . | . . . . Recycling Units 1 | . 1 . . Scanalyzers . | . . . . Garrison Access . | . . . . Total Hacks 4 | . 1 3 . Successful 2 | . 1 1 . Failed 2 | . . 2 . Catastrophic . | . . . . Database Lockouts . | . . . . Manual . | . . . . Terminals 3 | . . 3 . Fabricators . | . . . . Repair Stations . | . . . . Recycling Units 1 | . 1 . . Scanalyzers . | . . . . Garrison Access . | . . . . Terminal Hacks 1 | . . 1 . Zone Layout 1 | . . 1 . Fabricator Hacks . | . . . . Repair Station Hacks . | . . . . Recycling Unit Hacks 1 | . 1 . . Report Inventory 1 | . 1 . . Scanalyzer . | . . . . Garrison Access Hacks . | . . . . Unauthorized Hacks . | . . . . Terminals . | . . . . Fabricators . | . . . . Repair Stations . | . . . . Recycling Units . | . . . . Scanalyzers . | . . . . Garrison Access . | . . . . Data Cores Recovered . | . . . . Used . | . . . . Hacking Detections 1 | . . 1 . Full Trace Events 1 | . . 1 . Feedback Events . | . . . . Feedback Blocked . | . . . . Robot Schematics Acquired . | . . . . Robots Built . | . . . . Authchips . | . . . . Time . | . . . . Total Robot Build Rating . | . . . . Part Schematics Acquired . | . . . . Parts Built . | . . . . Authchips . | . . . . Time . | . . . . Total Part Build Rating . | . . . . Parts Repaired . | . . . . Time . | . . . . Parts Recycled . | . . . . Recycled Matter . | . . . . Retrieved Matter . | . . . . Retrieved Components . | . . . . Parts Scanalyzed . | . . . . Part Schematics Acquired . | . . . . Parts Damaged . | . . . . Bothacking | -11 -10 -9 -9 ------------ Run | Yrd Mat Mat Min Used RIF Installer . | . . . . Robots Hacked . | . . . . Non-combat . | . . . . Combat . | . . . . Robot Hacks Applied . | . . . . Relay Couplers Released . | . . . . Fabnet Peak Effective % . | . . . . Robots Rewired . | . . . . Allies Hacked . | . . . . Hacks Repelled . | . . . . Allies | -11 -10 -9 -9 -------- Run | Yrd Mat Mat Min Total Allies . | . . . . Largest Group . | . . . . Highest-Rated Group . | . . . . Highest-Rated Ally . | . . . . Total Orders . | . . . . Ally Attacks . | . . . . Total Damage . | . . . . Kills . | . . . . Allies Corrupted . | . . . . Allies Melted . | . . . . Intel | -11 -10 -9 -9 ------- Run | Yrd Mat Mat Min Robot Analysis Total . | . . . . Derelict Logs Recovered . | . . . . Drone Launches . | . . . . Drone Recoveries . | . . . . Exploration | -11 -10 -9 -9 ------------- Run | Yrd Mat Mat Min Turns Passed 1205 | 75 481 555 94 Spaces Moved 596 | 50 196 294 56 Core 20 | 20 . . . Treads 313 | 30 196 31 56 Legs 263 | . . 263 . Wheels . | . . . . Hover . | . . . . Flight . | . . . . Fastest Speed 50 | 50 160 120 160 Average Speed 138 | 116 160 124 160 Slowest Speed 240 | 160 160 240 160 Overloaded Moves . | . . . . Propulsion Burnouts . | . . . . Robots Hopped . | . . . . Cave-ins Triggered . | . . . . Exploration Rate (%) 23 | 4 40 27 21 Regions Visited 3 Branch Regions 1 Pre-discovered Areas . | . . . . Known Exits Taken . | . . . . Unknown Exits Taken 3 | 1 1 1 . Scrap Searched . | . . . . Spaces Dug . | . . . . Terrain Destroyed . | . . . . Melee . | . . . . Projectile . | . . . . AOE . | . . . . Terrain Rammed . | . . . . Walls Destroyed . | . . . . Machines Disabled . | . . . . Actions | -11 -10 -9 -9 --------- Run | Yrd Mat Mat Min Total 824 | 68 276 421 59 Wait 53 | . 12 41 . Move 593 | 49 195 293 56 Hop . | . . . . Pick Up 37 | 13 7 17 . Fast Attach 3 | . 1 2 . Attach 14 | 5 3 6 . Detach 1 | . 1 . . Swap 11 | . 1 8 2 Drop 18 | 1 2 14 1 Fire 94 | . 54 40 . Melee . | . . . . Ram . | . . . . Kick . | . . . . Crush . | . . . . Escape Stasis . | . . . . Rewire . | . . . . Trap . | . . . . Miscellaneous . | . . . . Route ------- -11/Scrapyard -10/Materials -9/Materials -9/Mines History --------- Turn | Location | Event 23 | -11/Scrapyard | Discovered new exit (range 15) 76 | -11/Scrapyard | Entered Materials 285 | -10/Materials | Discovered new exit (range 15) 307 | -10/Materials | Build established: Mutant 494 | -10/Materials | Core integrity fell below 50% 557 | -10/Materials | Entered another Materials area 557 | -9/Materials | Evolved 2 slots: Propulsion x1, Utility x1 854 | -9/Materials | Build established: Scavenger-Mutant 1084 | -9/Materials | Discovered new exit (range 16) 1112 | -9/Materials | Entered Mines 1151 | -9/Mines | Assembled infested the area 1156 | -9/Mines | Assisted by a Guerilla fighting off Assembled 1206 | -9/Mines | Self-destructed Last Messages --------------- as-03636 destroyed. U-05 Engineer destroyed. as-84772 destroyed. as-45658 destroyed. as-86097 destroyed. as-64343 destroyed. as-65044 destroyed. as-66762 destroyed. The unstable cave ceiling collapses. Lgt. Treads destroyed. The unstable cave ceiling collapses. as-94622 destroyed. The unstable cave ceiling collapses. Autogun destroyed. The unstable cave ceiling collapses. Autogun destroyed. The unstable cave ceiling collapses. Ion Engine destroyed. Lgt. Treads destroyed. The unstable cave ceiling collapses. Map ----- +----------------------------------------------------+ | ?????### ##????????? | | ?????# #????????? | | ????## ### #????????? | | ????? ???# ##???????? | | ?????# # ??? ######??? | | ???### ???# % ##?? | | ??## #???# % #?? | | ??# ####?# #?? | | ?## ### #?? | | ## # #??? | | # #??? | | ##?? | | # #?? | | # ## #?? | | ## ?# #?? | | ?#### ?### < #?? | | ????# ???## ##? | | ????#" ????# # ## #? | | ????#%$????## # #? | | ????#" ?????###### ##? | | ????# ??????????## #d #?? | | ????# ????????????###### d#### | | ?????????????????????## # | | ?????????????????????# # | | ?????????????????????# #? | | ?????????????????????# @ # | | ?????????????????????## # #? | | ??????????????????????# #? | | ????????????????????? ###? | | ????????????????????#######??? | | ?????????????????????????????? | | ?????????????????????????????? | | ?????????????????????????????? | | ?????????????????????????????? | | ?????????????????????????????? | | ?????????????????????????????? | | ?????????????????????????????? | | ?????????????????????????????? | | ?????????????????????????????? | | ?????????????????????????????? | | ?????????????????????????????? | | ?????????????????????????????? | | ?????????????????????????????? | | ?????????????????????????????? | | ?????????????????????????????? | | ?????????????????????????????? | | ?????????????????????????????? | | ?????????????????????????????? | | ?????????????????????????????? | | ?????????????????????????????? | +----------------------------------------------------+ Best States ------------- Heat Dissipation 28 Energy Generation 10 Energy Capacity 350 Matter Stores 300 Matter Capacity 300 Sight Range 16 Terrain Scan Density 10 Additional Mass Support 6 Evasion (%) 55 Recoil Reduction 3 Item Schematics ----------------- None Robot Schematics ------------------ None Fabricated ------------ Nothing Alien Tech Used ----------------- None Achievements -------------- None Challenges ------------ None Game ------ Seed BombardmentEnergyInitializer Manual? 0 Play Time 00:13:04 Cumulative 26.7 hours Start 2024.05.28 @ 13:55:43 End 2024.05.28 @ 14:09:01 Sessions 1 Manual Loads 0 Difficulty Rogue Special Mode None Game No. 40 Rogue 40 Adventurer 0 Explorer 0 Win Type - Total 0 Types 0/0/0/0/0/0/0/0/0 Lore% 17 Gallery% 26 Achievement% 20 Wizard Run 0 Options --------- Layout 1 ASCII 0 Keyboard 0 Movement Mouse Keybinds 0 Fullscreen 2 Font 24/Smallcaps Map View 50x35 Zoom Use 0% Tactical HUD 0 Map Filters NONE Filters NONE Steam 1 RUN: 08155fbc-e4a7-4bd2-93a3-9b9a6d28fb9c